Cogmind - Beta 16 @@@ ROGUE MODE // 2025.12.14 @ 12:09:47 Player: Careless Squirrel Result: Destroyed by G-47 Trooper with Particle Gun Performance ------------- Evolutions (0) 0 Regions Visited (2) 400 Robots Destroyed (2) 10 Value Destroyed (81) 81 Prototype IDs (0) 0 Alien Tech Used (0) 0 Bonus (0) 0 TOTAL SCORE: 491 Bonus ------- None Cogmind --------- Core Integrity 0/250 Matter 139/300 Energy 40/100 System Corruption 0% Temperature Cool (9) Movement Treading (160) Location -10/Mines Parts ------- > --- POWER (1) -------- (None) > --- PROPULSION (2) --- Light Treads > --- UTILITY (2) ------ Small Storage Unit > --- WEAPON (2) ------- Medium Laser > --- INVENTORY (8) ---- Light Treads Aluminum Leg Light Assault Rifle Peak State ------------ > --- POWER ------------ Light Ion Engine > --- PROPULSION ------- Aluminum Leg Aluminum Leg > --- UTILITY ---------- Small Storage Unit > --- WEAPON ----------- Medium Laser Light Assault Rifle > --- INVENTORY -------- Light Ion Engine Light Treads Light Treads Medium Laser [Rating: 6] Favorites ----------- Power Light Ion Engine Engine Light Ion Engine Propulsion Aluminum Leg Treads Light Treads Leg Aluminum Leg Utility Small Storage Unit Storage Small Storage Unit Weapon Medium Laser Energy Gun Medium Laser Ballistic Gun Light Assault Rifle Launcher Grenade Launcher Build | -11 -10 -10 ------- Run | Yrd Mat Min Slots Evolved . | . . . Power . | . . . Propulsion . | . . . Utility . | . . . Weapon . | . . . Parts Attached 12 | 6 . 6 Power 2 | 1 . 1 Engine 2 | 1 . 1 Core . | . . . Reactor . | . . . Propulsion 3 | 2 . 1 Treads 1 | . . 1 Leg 2 | 2 . . Wheel . | . . . Hover . | . . . Flight . | . . . Utility 1 | 1 . . Device . | . . . Storage 1 | 1 . . Processor . | . . . Hackware . | . . . Protection . | . . . Artifact . | . . . Weapon 6 | 2 . 4 Energy Gun 2 | 1 . 1 Energy Cannon . | . . . Ballistic Gun 1 | 1 . . Ballistic Cannon . | . . . Launcher 3 | . . 3 Special Weapon . | . . . Impact Weapon . | . . . Slashing Weapon . | . . . Piercing Weapon . | . . . Special Melee Weapon . | . . . Unidentified Prototypes . | . . . Parts Lost 8 | . . 8 Power 2 | . . 2 Propulsion 2 | . . 2 Utility . | . . . Weapon 4 | . . 4 Highest Loss Streak 8 | . . 8 To Critical Strikes . | . . . Average Backups 5 | 3 4 7 Power 1 | 1 1 1 Propulsion 2 | 1 2 2 Utility . | . . . Weapon 1 | 1 1 3 Tool/Special . | . . . Unused Backups 2 | . . 2 Power . | . . . Propulsion 2 | . . 2 Utility . | . . . Weapon . | . . . Tool/Special . | . . . Average Slot Usage (%) 81 | . 85 77 Engine 12 | . 14 11 Leg 26 | . 28 25 Storage 14 | . 14 14 Energy Gun 14 | . 14 14 Ballistic Gun 8 | . 14 2 Launcher 3 | . . 8 Peak Build Rating 6 | 6 6 6 Average Rating 5 | 4 6 5 On Entrance 4 | . 6 6 Avg Prop Armor Cover (%) . | . . . Naked Turns . | . . . Heaviest Build 13 | 11 11 13 Greatest Support 20 | 20 20 20 Greatest Overweight (x) . | . . . Average Overweight (x) . | . . . Largest Inventory Capacity 8 | 8 8 8 Average Capacity 7 | 6 8 8 Most Carried 8 | 7 7 8 Average Carried 5 | 3 4 7 Final Capacity 8 | 8 8 8 Final Carried 7 | 4 7 3 Class Distribution -------------------- 100% | Mutant Dominant Class ---------------- Mutant | -10/Materials Mutant | -10/Mines Resources | -11 -10 -10 ----------- Run | Yrd Mat Min Matter Collected 210 | 181 . 29 Remotely . | . . . Salvage Created 71 | . . 71 Parts 2 | . . 2 Haulers Intercepted . | . . . Recyclers Shooed . | . . . Parts Field Recycled . | . . . Retrieved Matter . | . . . Parts Self-Destructed . | . . . Prevented . | . . . Parts Restored . | . . . Kills | -11 -10 -10 ------- Run | Yrd Mat Min Combat Hostiles Destroyed 5 | . . 5 AOE 5 | . . 5 Classes Destroyed 2 | . . 2 Grunt 2 | . . 2 Assembled 3 | . . 3 Best Kill Streak 3 | . . 3 Combat Bots Only 3 | . . 3 Max Kills in Single Turn 2 | . . 2 Gunslinging . | . . . Exploded 2 | . . 2 Melee . | . . . Uniques/NPCs Destroyed . | . . . Combat | -11 -10 -10 -------- Run | Yrd Mat Min Hostile Shots Fired 41 | . . 41 Missed 12 | . . 12 Hits 29 | . . 29 Projectile 29 | . . 29 AOE 17 | . . 17 Damage Taken 887 | . . 887 Core 255 | . . 255 Absorbed by Shields . | . . . Core Remaining (%) 100 | 100 . . Volleys Fired 13 | . . 13 Largest 2 | . . 2 Hottest 80 | . . 80 Shots Fired 22 | . . 22 Gun 13 | . . 13 Cannon . | . . . Launcher 9 | . . 9 Special . | . . . Kinetic 1 | . . 1 Thermal 12 | . . 12 Explosive 9 | . . 9 Electromagnetic . | . . . Robot Hit Streak 5 | . . 5 Robot Miss Streak 3 | . . 3 Penetration Max . | . . . Secondary Targets . | . . . Shots Hit Robots 9 | . . 9 Core Hits 15 | . . 15 Critical Kills . | . . . Critical Parts Destroyed . | . . . Critical Strikes 2 | . . 2 Burn 2 | . . 2 Melee Attacks . | . . . Impact . | . . . Slashing . | . . . Piercing . | . . . Sneak Attacks . | . . . Combat Hostiles . | . . . Follow-up Attacks . | . . . Damage Inflicted 435 | . . 435 Guns 51 | . . 51 Cannons . | . . . Explosions 384 | . . 384 Melee . | . . . Ramming . | . . . Kinetic . | . . . Thermal 51 | . . 51 Explosive 384 | . . 384 Electromagnetic . | . . . Impact . | . . . Slashing . | . . . Piercing . | . . . Highest Corruption . | . . . Average Corruption . | . . . Corruption Purged . | . . . Corruption Blocked . | . . . Overload Shots . | . . . Overflow Damage 3 | . . 3 Projectiles . | . . . Explosions 3 | . . 3 Melee . | . . . Knockbacks . | . . . Impact . | . . . Kinetic . | . . . Secondary . | . . . Self-Inflicted Damage 61 | . . 61 Shots 3 | . . 3 Rammed . | . . . Targets Rammed . | . . . Kicked . | . . . Crushed . | . . . Highest Temperature 74 | . . 74 Average Temperature 29 | . . 29 Received Heat Transfer 104 | . . 104 Siege Activations . | . . . Martial Activations . | . . . Shielding Activations . | . . . Robots Disrupted . | . . . Combat Hostiles . | . . . Robots Corrupted . | . . . Combat Hostiles . | . . . Parts Fried . | . . . Impact Corruptions . | . . . Robots Melted . | . . . Combat Hostiles . | . . . Parts Melted . | . . . Heat Transferred 296 | . . 296 Parts Sabotaged . | . . . Parts Stolen . | . . . Parts Stripped . | . . . Power Chain Reactions . | . . . Alert | -11 -10 -10 ------- Run | Yrd Mat Min Maximum Alert Level . | . . . Low Security (%) 100 | 100 100 100 Level 1 . | . . . Level 2 . | . . . Level 3 . | . . . Level 4 . | . . . Level 5 . | . . . High Security . | . . . Max Security . | . . . Peak Influence 65 | . . 65 Initial . | . . . Average 10 | . . 35 Influence Increases 95 | . . 95 Destroy 0b10 Robot/C 40 | . . 40 Destroy Leader 10 | . . 10 Destroy Structure 45 | . . 45 Influence Decreases 95 | . . 95 Time Decay 40 | . . 40 Lost Part 55 | . . 55 Squads Dispatched 1 | . 1 . Investigation 1 | . 1 . Extermination . | . . . Reinforcement . | . . . Assault . | . . . Garrison . | . . . Intercept . | . . . Searches Triggered . | . . . Construction Impeded . | . . . Haulers Reinforced . | . . . Active Scanning Responses . | . . . Cargo Convoy Interrupts . | . . . Stealth | -11 -10 -10 --------- Run | Yrd Mat Min Distress Signals . | . . . Communications Jammed . | . . . Distress Signals . | . . . Times Spotted 21 | . . 21 Peak Tracking Total 14 | . . 14 Tactical Retreats . | . . . Traps | -11 -10 -10 ------- Run | Yrd Mat Min Traps Triggered 1 | . 1 . Indirectly . | . . . Trap Hack Attempts . | . . . Triggered . | . . . Disarmed . | . . . Reprogrammed . | . . . Reused . | . . . Traps Extracted . | . . . Installed . | . . . Triggered . | . . . Machines | -11 -10 -10 ---------- Run | Yrd Mat Min Machines Disabled . | . . . Max in Single Turn . | . . . Machines Repaired . | . . . Machines Dismantled . | . . . Machines Sabotaged . | . . . Overloaded Fab Kills . | . . . Hacking | -11 -10 -10 --------- Run | Yrd Mat Min Machines Accessed . | . . . Terminals . | . . . Fabricators . | . . . Repair Stations . | . . . Recycling Units . | . . . Scanalyzers . | . . . Garrison Access . | . . . Total Hacks . | . . . Successful . | . . . Failed . | . . . Catastrophic . | . . . Database Lockouts . | . . . Manual . | . . . Terminals . | . . . Fabricators . | . . . Repair Stations . | . . . Recycling Units . | . . . Scanalyzers . | . . . Garrison Access . | . . . Terminal Hacks . | . . . Fabricator Hacks . | . . . Repair Station Hacks . | . . . Recycling Unit Hacks . | . . . Scanalyzer . | . . . Garrison Access Hacks . | . . . Unauthorized Hacks . | . . . Terminals . | . . . Fabricators . | . . . Repair Stations . | . . . Recycling Units . | . . . Scanalyzers . | . . . Garrison Access . | . . . Data Cores Recovered . | . . . Used . | . . . Hacking Detections . | . . . Full Trace Events . | . . . Feedback Events . | . . . Feedback Blocked . | . . . Robot Schematics Acquired . | . . . Robots Built . | . . . Authchips . | . . . Time . | . . . Total Robot Build Rating . | . . . Part Schematics Acquired . | . . . Parts Built . | . . . Authchips . | . . . Time . | . . . Total Part Build Rating . | . . . Part Studies Acquired . | . . . Parts Repaired . | . . . Time . | . . . Parts Recycled . | . . . Recycled Matter . | . . . Retrieved Matter . | . . . Retrieved Components . | . . . Parts Scanalyzed . | . . . Part Schematics Acquired . | . . . Parts Damaged . | . . . Bothacking | -11 -10 -10 ------------ Run | Yrd Mat Min Used RIF Installer . | . . . Robots Hacked . | . . . Non-combat . | . . . Combat . | . . . Robot Hacks Applied . | . . . Relay Couplers Released . | . . . Fabnet Peak Effective % . | . . . Robots Rewired . | . . . Allies Hacked . | . . . Hacks Repelled . | . . . Allies | -11 -10 -10 -------- Run | Yrd Mat Min Total Allies . | . . . Largest Group . | . . . Highest-Rated Group . | . . . Highest-Rated Ally . | . . . Total Orders . | . . . Ally Attacks . | . . . Total Damage . | . . . Kills . | . . . Allies Corrupted . | . . . Allies Melted . | . . . Intel | -11 -10 -10 ------- Run | Yrd Mat Min Active Infowar (turns) . | . . . Robot Analysis Total . | . . . Derelict Logs Recovered . | . . . Drone Launches . | . . . Drone Recoveries . | . . . Exploration | -11 -10 -10 ------------- Run | Yrd Mat Min Turns Passed 300 | 91 117 92 Spaces Moved 203 | 68 96 39 Core 9 | 9 . . Treads . | . . . Legs 194 | 59 96 39 Wheels . | . . . Hover . | . . . Flight . | . . . Fastest Speed 50 | 50 120 120 Average Speed 116 | 110 120 120 Slowest Speed 120 | 120 120 120 Overloaded Moves . | . . . Propulsion Burnouts . | . . . Robots Hopped . | . . . Potential Cave-ins . | . . . Cave-ins Triggered . | . . . Exploration Rate (%) 19 | 4 25 28 Regions Visited 2 Branch Regions 1 Pre-discovered Areas . | . . . Known Exits Taken . | . . . Unknown Exits Taken 2 | 1 1 . Scrap Searched . | . . . Spaces Dug 21 | . . 21 Terrain Destroyed 61 | . . 61 Melee . | . . . Projectile . | . . . AOE 61 | . . 61 Terrain Rammed . | . . . Walls Destroyed . | . . . Machines Disabled . | . . . Actions | -11 -10 -10 --------- Run | Yrd Mat Min Total 243 | 83 98 62 Wait 3 | 1 . 2 Move 201 | 67 95 39 Hop . | . . . Pick Up 13 | 9 3 1 Fast Attach 1 | 1 . . Attach 11 | 5 . 6 Detach 1 | . . 1 Swap . | . . . Drop . | . . . Fire 13 | . . 13 Melee . | . . . Ram . | . . . Kick . | . . . Crush . | . . . Escape Stasis . | . . . Rewire . | . . . Trap . | . . . Miscellaneous . | . . . Route ------- -11/Scrapyard -10/Materials -10/Mines History --------- Turn | Location | Event 5 | -11/Scrapyard | Discovered new exit (range 16) 92 | -11/Scrapyard | Entered Materials 93 | -10/Materials | Met a group of wandering Federalists 180 | -10/Materials | Discovered new exit (range 13) 209 | -10/Materials | Entered Mines 216 | -10/Mines | Received a Rocket Launcher from a helpful Derelict 246 | -10/Mines | Assembled infested the area 292 | -10/Mines | Core integrity fell below 50% 296 | -10/Mines | Core integrity fell below 20% 301 | -10/Mines | Destroyed by G-47 Trooper with Particle Gun Last Messages --------------- 00276_ as-12019 destroyed. 00277_ The unstable cave ceiling collapses. 00277_ G-34 Mercenary destroyed. 00277_ as-55636 destroyed. 00278_ as-75212 destroyed. 00279_ as-13743 destroyed. 00279_ as-42868 destroyed. 00279_ as-81453 destroyed. 00285_ The unstable cave ceiling collapses. 00285_ Lgt. Ion Engine destroyed. 00285_ Grenade Launcher destroyed. 00289_ The unstable cave ceiling collapses. 00291_ Aluminum Leg destroyed. 00291_ Med. Laser destroyed. 00293_ The unstable cave ceiling collapses. 00293_ Rocket Launcher destroyed. 00295_ Grenade Launcher destroyed. 00297_ The unstable cave ceiling collapses. 00298_ Lgt. Ion Engine destroyed. 00298_ R-06 Scavenger destroyed. Map ----- +----------------------------------------------------+ | ?????????????????????????????????????????????????? | | ?????????????????????????????????????????????????? | | ?????????????????????????????????????????????????? | | ?????????????????????????????????????????????????? | | ?????????????????????????????????????????????????? | | ?????????????????????????????????????????????????? | | ?????????????????????????????????????????????????? | | ?????????????????????????????????????????????????? | | ??????????????????????? ????????????????????????? | | ?????????????????????? ????????????????????????? | | ?????????????????% ? ##??????????????????????? | | ??????????# ???? # #??????????????????????? | | ??????????# #?## #??????????????????????? | | ??????????# # ##?????????????????????? | | ???????????? %% ! ??????????????????????? | | ???????????? ! ??????????????????????? | | ?????????????# < % ??????????????????????? | | ?????????????? ???????????????????????? | | ??????????????## ???????????????????????? | | ??????????????# t d ####????????????????????? | | ??????????????# = g d # ##???????????????????? | | ?????????####### ##??????????????????? | | ?????? #??????????????????? | | ?????? #??????????????????? | | ???????# # #??????????????????? | | ???????## #?# @ #??????????????????? | | ????????# ???# #??????????????????? | | ????????## #?????# #??????????????????? | | ?????????##???????##% ##??????????????????? | | ??????? ???????## ##???????????????????? | | ?????? ###### #####????????????????????? | | ?????????# #????????????????????????? | | ?????????# #### #???????????????????? | | ?????????####### #????????????????????? | | ???????????????## ## #????????????????????? | | ????????????????### #?????????????????????? | | ??????????????????###= ##?????????????????????? | | ???????????????????### #??###????????????????? | | ???????????????????# # ##?# ####?????????????? | | ?????????????????#### ## #?????????????? | | ?????????????????# # #?????????????? | | ?????????????????# # # #?????????????? | | ???????????????? ?#### #??????????????? | | ???????????????##???## ##??????????????? | | ???????????????????## ##???????????????? | | ???????????????????# ###????????????????? | | ???????????????????# ##??????????????????? | | ?????????#????????## ##???????????????????? | | ?????????# ###????# ####????????????????????? | | ????????## #???# ##???????????????????????? | +----------------------------------------------------+ Best States ------------- Heat Dissipation 25 Energy Generation 10 Energy Capacity 125 Matter Stores 221 Matter Capacity 300 Sight Range 16 Terrain Scan Density 10 Evasion (%) 55 Recoil Reduction 1 Item Schematics ----------------- None Robot Schematics ------------------ None Fabricated ------------ Nothing Repaired ---------- Nothing Studied --------- None Alien Tech Used ----------------- None Achievements -------------- None Challenges ------------ None Game ------ Seed SalvagingCoolingGenerator Manual? 0 Play Time 00:06:21 Cumulative 5.4 hours Start 2025.12.14 @ 12:05:31 End 2025.12.14 @ 12:09:47 Sessions 1 Manual Loads 0 Difficulty Rogue Special Mode None Game No. 14 Rogue 14 Adventurer 0 Explorer 0 Win Type - Total 0 Types 0/0/0/0/0/0/0/0/0/0 Lore% 2 Gallery% 11 Achievement% 9 Wizard Run 0 Options --------- Layout 1 ASCII 0 Keyboard 0 Movement Mouse Keybinds 0 Fullscreen 1 Font 24/Smallcaps Map View 50x35 Zoom Use 0% Tactical HUD 1 Map Filters NONE Filters NONE Steam 1 RUN: c9043698-b9f6-4812-82e9-941253b70652